fUSD/lending_fUSD_20260624
["ID","MTS","AMOUNT","RATE_DAILY","PERIOD"]
[426302893,1782259862000,-50000.0,0.00025,10]
[426302894,1782259862000,-221220.36923255,0.00025,7]
[426302896,1782259862000,-3379.98868972,0.00025,2]
[426302895,1782259862000,-2243.23017917,0.00025,2]
[426302900,1782259862000,-150.0,0.00025,2]
[426302899,1782259862000,-4885.63578395,0.00025,2]
[426302840,1782259862000,-150.0,0.00024658,2]
[426302902,1782259862000,-1569682.83348132,0.00025,2]
[426302897,1782259862000,-170.57290139,0.00025,2]
[426302901,1782259862000,-1006.67618899,0.00025,2]
[426302888,1782259862000,-540.0,0.00025,2]
[426302873,1782259862000,-383.0,0.00024901,2]
[426302887,1782259862000,-1819.57891694,0.00025,2]
[426302875,1782259862000,-1361.0,0.00024901,2]
[426302836,1782259862000,-150.0,0.00024658,2]
[426302871,1782259862000,-631.0,0.00024848,6]
[426302849,1782259862000,-150.0,0.00024658,2]
[426302855,1782259862000,-2682.57183977,0.00024734,2]
[426302853,1782259862000,-151.0,0.00024734,2]
[426302846,1782259862000,-150.0,0.00024658,2]
[426302848,1782259862000,-150.0,0.00024658,2]
[426302851,1782259862000,-153.95356175,0.00024658,2]
[426302847,1782259862000,-150.0,0.00024658,2]
[426302854,1782259862000,-200.0,0.00024734,2]
[426302845,1782259862000,-150.0,0.00024658,2]
[426302852,1782259862000,-847.40734944,0.00024661,2]
[426302850,1782259862000,-150.0,0.00024658,2]
[426302856,1782259862000,-4888.88543764,0.00024772,2]
[426302844,1782259862000,-150.0,0.00024658,2]
[426302866,1782259862000,-500.0,0.00024846,2]
[426302860,1782259862000,-12208.21,0.00024846,7]
[426302870,1782259862000,-500.0,0.00024846,2]
[426302859,1782259862000,-200.0,0.00024844,2]
[426302865,1782259862000,-500.0,0.00024846,2]
[426302862,1782259862000,-500.0,0.00024846,2]
[426302864,1782259862000,-500.0,0.00024846,2]
[426302863,1782259862000,-500.0,0.00024846,2]
[426302858,1782259862000,-37721.26356545,0.00024781,7]
[426302869,1782259862000,-500.0,0.00024846,2]
[426302868,1782259862000,-500.0,0.00024846,2]
[426302857,1782259862000,-5260.63529455,0.00024781,7]
[426302867,1782259862000,-500.0,0.00024846,2]
[426302861,1782259862000,-500.0,0.00024846,2]
[426302942,1782259863000,-269.249007,0.00025,2]
[426302939,1782259863000,-174.0,0.00025,7]
[426302941,1782259863000,-269.249007,0.00025,2]
[426302943,1782259863000,-440.44,0.00025,2]
[426302938,1782259863000,-151.0,0.00025,2]
[426302937,1782259863000,-645.664511,0.00025,2]
[426302934,1782259863000,-645.664511,0.00025,2]
[426302935,1782259863000,-645.664511,0.00025,2]
[426302936,1782259863000,-151.0,0.00025,2]
[426302944,1782259863000,-269.249007,0.00025,2]
[426302940,1782259863000,-269.249007,0.00025,2]
[426302945,1782259863000,-440.44,0.00025,2]
[426302951,1782259863000,-4888.88543764,0.00025046,2]
[426302946,1782259863000,-670.4430068,0.00025046,2]
[426302957,1782259863000,-151.0,0.00025046,2]
[426302949,1782259863000,-197.08549854,0.00025046,2]
[426302955,1782259863000,-1021.58590871,0.00025046,2]
[426302948,1782259863000,-242.15909246,0.00025046,2]
[426302947,1782259863000,-871.06772465,0.00025046,2]
[426302954,1782259863000,-242.15909246,0.00025046,2]
[426302950,1782259863000,-217.15233878,0.00025046,2]
[426302952,1782259863000,-11046.30350254,0.00025046,2]
[426302953,1782259863000,-242.15909246,0.00025046,2]
[426302958,1782259863000,-1916.07,0.000251,7]
[426302933,1782259863000,-645.664511,0.00025,2]
[426302956,1782259863000,-242.15909246,0.00025046,2]
[426302932,1782259863000,-151.0,0.00025,2]
[426302960,1782259863000,-291.5050583,0.000252,3]
[426302928,1782259863000,-654.820538,0.00025,2]
[426302904,1782259863000,-1477.43926038,0.00025,2]
[426302905,1782259863000,-2752.02829875,0.00025,2]
[426302907,1782259863000,-313.21789281,0.00025,2]
[426302908,1782259863000,-1387.7031038,0.00025,2]
[426302911,1782259863000,-151.0,0.00025,2]
[426302917,1782259863000,-187.792673,0.00025,2]
[426302915,1782259863000,-1011.06220337,0.00025,2]
[426302910,1782259863000,-151.0,0.00025,2]
[426302912,1782259863000,-422.47364359,0.00025,2]
[426302906,1782259863000,-380.01801853,0.00025,2]
[426302913,1782259863000,-157.301191,0.00025,2]
[426302909,1782259863000,-151.0,0.00025,2]
[426302914,1782259863000,-446.00412977,0.00025,2]
[426302919,1782259863000,-187.792673,0.00025,2]
[426302918,1782259863000,-187.792673,0.00025,2]
[426302924,1782259863000,-207.0,0.00025,2]
[426302923,1782259863000,-1993.101868,0.00025,2]
[426302920,1782259863000,-847.12878834,0.00025,2]
[426302931,1782259863000,-654.820538,0.00025,2]
[426302921,1782259863000,-1993.101868,0.00025,2]
[426302929,1782259863000,-654.820538,0.00025,2]
[426302930,1782259863000,-654.820538,0.00025,2]
[426302922,1782259863000,-1993.101868,0.00025,2]
[426302925,1782259863000,-1993.101868,0.00025,2]
[426302927,1782259863000,-216.39158367,0.00025,10]
[426302926,1782259863000,-3000.0,0.00025,3]
[426302961,1782259863000,-167.31875847,0.000252,3]
[426302916,1782259863000,-187.792673,0.00025,2]
[426302962,1782259863000,-151.0,0.00025282,2]
[426302996,1782259863000,-172.94117848,0.00025393,2]
[426302994,1782259863000,-218.35596824,0.0002539,2]
[426302990,1782259863000,-160.50919451,0.0002539,2]
[426302995,1782259863000,-186.972758,0.0002539,2]
[426302997,1782259863000,-199.99541127,0.00025393,2]
[426302998,1782259863000,-692.46006228,0.00025393,2]
[426303000,1782259863000,-207.92176566,0.00025393,2]
[426303010,1782259863000,-497.04610246,0.00025397,2]
[426303011,1782259863000,-631.0,0.00025455,7]
[426303012,1782259863000,-191.88953814,0.00025464,2]
[426302999,1782259863000,-208.81831535,0.00025393,2]
[426303001,1782259863000,-196.31819008,0.00025393,2]
[426302989,1782259863000,-286.84617592,0.0002539,2]
[426303009,1782259863000,-168.50398799,0.00025393,2]
[426303002,1782259863000,-200.85528506,0.00025393,2]
[426303003,1782259863000,-173.3247297,0.00025393,2]
[426303005,1782259863000,-182.54503144,0.00025393,2]
[426303017,1782259863000,-323.97,0.00025498,2]
[426303006,1782259863000,-209.08899155,0.00025393,2]
[426303007,1782259863000,-178.546956,0.00025393,2]
[426303013,1782259863000,-163.77142192,0.00025464,2]
[426303014,1782259863000,-197.51629955,0.00025464,2]
[426303016,1782259863000,-194.73596646,0.00025464,2]
[426303015,1782259863000,-172.8785797,0.00025464,2]
[426303018,1782259863000,-394.0,0.00025536,2]
[426302963,1782259863000,-200.0,0.00025282,2]
[426303004,1782259863000,-162.43953456,0.00025393,2]
[426302988,1782259863000,-179.07342584,0.0002539,2]
[426303008,1782259863000,-195.86385338,0.00025393,2]
[426302992,1782259863000,-154.98197297,0.0002539,2]
[426302986,1782259863000,-155.8561153,0.0002539,2]
[426302970,1782259863000,-150.0,0.00025341,2]
[426302969,1782259863000,-150.0,0.00025341,2]
[426302966,1782259863000,-150.0,0.00025341,2]
[426302959,1782259863000,-150.0,0.00025181,2]
[426302968,1782259863000,-150.0,0.00025341,2]
[426302964,1782259863000,-2781.82699784,0.00025282,2]
[426302965,1782259863000,-4888.88543764,0.0002532,2]
[426302967,1782259863000,-150.0,0.00025341,2]
[426302972,1782259863000,-166.05789483,0.0002539,2]
[426302985,1782259863000,-205.8336936,0.0002539,2]
[426302974,1782259863000,-156.49464905,0.0002539,2]
[426302983,1782259863000,-154.50054738,0.0002539,2]
[426302971,1782259863000,-3562.0,0.00025341,2]
[426302991,1782259863000,-183.78064597,0.0002539,2]
[426302987,1782259863000,-186.01218282,0.0002539,2]
[426302984,1782259863000,-154.21578407,0.0002539,2]
[426302993,1782259863000,-216.51007784,0.0002539,2]
[426302979,1782259863000,-1340.45311684,0.0002539,2]
[426302981,1782259863000,-182.76920071,0.0002539,2]
[426302982,1782259863000,-251.48099545,0.0002539,2]
[426302980,1782259863000,-339.92391389,0.0002539,2]
[426302977,1782259863000,-166.54316966,0.0002539,2]
[426302976,1782259863000,-306.94891036,0.0002539,2]
[426302975,1782259863000,-165.41826738,0.0002539,2]
[426302973,1782259863000,-155.57202973,0.0002539,2]
[426302978,1782259863000,-168.36040682,0.0002539,2]
[426303059,1782259864000,-1135.61783262,0.00026,2]
[426303062,1782259864000,-220.76349037,0.00026,2]
[426303068,1782259864000,-408.0,0.00026,2]
[426303066,1782259864000,-3482190.15218088,0.00026,2]
[426303051,1782259864000,-151.0,0.000259,3]
[426303049,1782259864000,-166.0,0.000259,3]
[426303052,1782259864000,-2000.0,0.00025986,7]
[426303056,1782259864000,-936.0,0.00025999,2]
[426303050,1782259864000,-151.0,0.000259,3]
[426303057,1782259864000,-936.0,0.00025999,2]
[426303060,1782259864000,-4613.44123119,0.00026,2]
[426303054,1782259864000,-893.34,0.00025999,2]
[426303067,1782259864000,-447.0,0.00026,2]
[426303082,1782259864000,-936.0,0.00026199,2]
[426303064,1782259864000,-15239.35068509,0.00026,2]
[426303065,1782259864000,-550.0,0.00026,2]
[426303069,1782259864000,-631.0,0.00026061,7]
[426303061,1782259864000,-583474.59233992,0.00026,2]
[426303063,1782259864000,-9249.02109948,0.00026,5]
[426303074,1782259864000,-11878.85235123,0.00026142,2]
[426303070,1782259864000,-871.06772465,0.00026142,2]
[426303071,1782259864000,-260.4103811,0.00026142,2]
[426303081,1782259864000,-893.34,0.00026199,2]
[426303075,1782259864000,-4888.88543764,0.00026142,2]
[426303080,1782259864000,-151.0,0.00026142,2]
[426303076,1782259864000,-209.9340037,0.00026142,2]
[426303055,1782259864000,-893.34,0.00025999,2]
[426303058,1782259864000,-50000.0,0.00026,7]
[426303053,1782259864000,-612.93611977,0.0002599,2]
[426303023,1782259864000,-4888.88543764,0.00025594,2]
[426303047,1782259864000,-4888.88543764,0.00025868,2]
[426303019,1782259864000,-871.06772465,0.00025594,2]
[426303073,1782259864000,-233.5188934,0.00026142,2]
[426303026,1782259864000,-251.11897888,0.00025594,2]
[426303031,1782259864000,-847.40734944,0.0002566,2]
[426303028,1782259864000,-251.11897888,0.00025594,2]
[426303029,1782259864000,-151.0,0.00025594,2]
[426303030,1782259864000,-200.0,0.000256,2]
[426303020,1782259864000,-251.11897888,0.00025594,2]
[426303025,1782259864000,-251.11897888,0.00025594,2]
[426303027,1782259864000,-1021.58590871,0.00025594,2]
[426303022,1782259864000,-225.18697532,0.00025594,2]
[426303032,1782259864000,-500.0,0.00025675,7]
[426303024,1782259864000,-11455.01673214,0.00025594,2]
[426303048,1782259864000,-1361.33294408,0.00025887,4]
[426303021,1782259864000,-197.08549854,0.00025594,2]
[426303044,1782259864000,-200.0,0.00025849,2]
[426303033,1782259864000,-500.0,0.00025675,7]
[426303045,1782259864000,-2068.58,0.00025853,2]
[426303036,1782259864000,-59898.27,0.00025786,2]
[426303037,1782259864000,-590.77,0.00025786,2]
[426303038,1782259864000,-923.74,0.00025786,2]
[426303040,1782259864000,-310.0,0.000258,2]
[426303035,1782259864000,-3541.45,0.00025786,2]
[426303041,1782259864000,-151.0,0.0002583,2]
[426303039,1782259864000,-216.39158367,0.000258,10]
[426303043,1782259864000,-2884.75459676,0.0002583,2]
[426303042,1782259864000,-200.0,0.0002583,2]
[426303046,1782259864000,-206.51495448,0.00025865,2]
[426303034,1782259864000,-843.78,0.00025675,7]
[426303072,1782259864000,-197.08549854,0.00026142,2]
[426303095,1782259864000,-323.422718,0.00026384,2]
[426303077,1782259864000,-260.4103811,0.00026142,2]
[426303113,1782259864000,-2588.4132181,0.00026431,2]
[426303117,1782259864000,-15239.35068509,0.00026444,2]
[426303115,1782259864000,-150.0,0.00026438,5]
[426303116,1782259864000,-3329.1948,0.00026438,2]
[426303118,1782259864000,-12208.21,0.00026461,7]
[426303114,1782259864000,-489.119018,0.00026438,2]
[426303121,1782259864000,-228.91271553,0.00026529,2]
[426303131,1782259864000,-330.83653477,0.00026662,2]
[426303130,1782259864000,-312.98929811,0.00026662,2]
[426303125,1782259864000,-150.0,0.0002666,2]
[426303079,1782259864000,-165.58568558,0.00026142,2]
[426303123,1782259864000,-316.0,0.000266,2]
[426303128,1782259864000,-311.14405945,0.00026662,2]
[426303108,1782259864000,-2000.0,0.0002639,2]
[426303122,1782259864000,-1000.0,0.000266,2]
[426303129,1782259864000,-152.5836371,0.00026662,2]
[426303124,1782259864000,-202.0,0.000266,2]
[426303126,1782259864000,-847.40734944,0.0002666,2]
[426303134,1782259864000,-333.08633932,0.00026662,2]
[426303133,1782259864000,-613.89782072,0.00026662,2]
[426303142,1782259864000,-238.95227734,0.00026662,2]
[426303140,1782259864000,-679.84782777,0.00026662,2]
[426303138,1782259864000,-1148.95981443,0.00026662,2]
[426303141,1782259864000,-365.53840142,0.00026662,2]
[426303136,1782259864000,-215.22020598,0.00026662,2]
[426303139,1782259864000,-154.22317271,0.00026662,2]
[426303137,1782259864000,-154.30057292,0.00026662,2]
[426303135,1782259864000,-336.72081364,0.00026662,2]
[426303127,1782259864000,-332.11578966,0.00026662,2]
[426303120,1782259864000,-152.29823414,0.00026503,2]
[426303132,1782259864000,-221.81365674,0.00026662,2]
[426303109,1782259864000,-497.04610246,0.00026397,2]
[426303078,1782259864000,-1021.58590871,0.00026142,2]
[426303110,1782259864000,-20197.60700679,0.000264,2]
[426303084,1782259864000,-1138.6,0.00026296,2]
[426303083,1782259864000,-15239.35068509,0.00026222,2]
[426303085,1782259864000,-1916.07,0.000263,7]
[426303086,1782259864000,-200.0,0.00026355,2]
[426303087,1782259864000,-497.725829,0.00026364,2]
[426303090,1782259864000,-2991.49051684,0.00026378,2]
[426303093,1782259864000,-323.422718,0.00026384,2]
[426303091,1782259864000,-323.422718,0.00026384,2]
[426303089,1782259864000,-200.0,0.00026378,2]
[426303088,1782259864000,-151.0,0.00026378,2]
[426303092,1782259864000,-323.422718,0.00026384,2]
[426303096,1782259864000,-323.422718,0.00026384,2]
[426303094,1782259864000,-323.422718,0.00026384,2]
[426303105,1782259864000,-323.422718,0.00026384,2]
[426303099,1782259864000,-323.422718,0.00026384,2]
[426303098,1782259864000,-323.422718,0.00026384,2]
[426303100,1782259864000,-323.422718,0.00026384,2]
[426303102,1782259864000,-323.422718,0.00026384,2]
[426303104,1782259864000,-323.422718,0.00026384,2]
[426303101,1782259864000,-323.422718,0.00026384,2]
[426303103,1782259864000,-323.422718,0.00026384,2]
[426303107,1782259864000,-500.0,0.0002639,2]
[426303097,1782259864000,-323.422718,0.00026384,2]
[426303106,1782259864000,-323.422718,0.00026384,2]
[426303112,1782259864000,-479.386883,0.0002642,2]
[426303111,1782259864000,-4888.88543764,0.00026416,2]
[426303119,1782259864000,-339.295611,0.000265,2]
[426303161,1782259865000,-345.88235695,0.00026664,2]
[426303166,1782259865000,-415.84353131,0.00026664,2]
[426303151,1782259865000,-573.69235185,0.00026662,2]
[426303164,1782259865000,-519.34504671,0.00026664,2]
[426303162,1782259865000,-234.25279286,0.00026664,2]
[426303167,1782259865000,-392.63638016,0.00026664,2]
[426303171,1782259865000,-365.09006287,0.00026664,2]
[426303160,1782259865000,-373.945516,0.00026662,2]
[426303168,1782259865000,-401.71057011,0.00026664,2]
[426303165,1782259865000,-417.6366307,0.00026664,2]
[426303153,1782259865000,-207.82224297,0.00026662,2]
[426303163,1782259865000,-399.99082253,0.00026664,2]
[426303158,1782259865000,-436.71193648,0.00026662,2]
[426303150,1782259865000,-358.14685167,0.00026662,2]
[426303159,1782259865000,-210.37268652,0.00026662,2]
[426303152,1782259865000,-321.01838902,0.00026662,2]
[426303155,1782259865000,-236.59725527,0.00026662,2]
[426303157,1782259865000,-433.02015567,0.00026662,2]
[426303149,1782259865000,-372.02436565,0.00026662,2]
[426303147,1782259865000,-411.66738721,0.00026662,2]
[426303148,1782259865000,-311.7122306,0.00026662,2]
[426303146,1782259865000,-242.02757478,0.00026662,2]
[426303143,1782259865000,-502.96199089,0.00026662,2]
[426303145,1782259865000,-308.43156813,0.00026662,2]
[426303144,1782259865000,-309.00109476,0.00026662,2]
[426303154,1782259865000,-367.56129193,0.00026662,2]
[426303169,1782259865000,-346.6494594,0.00026664,2]
[426303156,1782259865000,-309.96394595,0.00026662,2]
[426303173,1782259865000,-391.72770676,0.00026664,2]
[426303198,1782259865000,-14806.4419769,0.00026822,2]
[426303199,1782259865000,-92357.97172962,0.00026822,2]
[426303190,1782259865000,-383.77907627,0.00026738,2]
[426303191,1782259865000,-327.54284383,0.00026738,2]
[426303188,1782259865000,-117430.3180523,0.00026692,2]
[426303194,1782259865000,-395.0325991,0.00026738,2]
[426303189,1782259865000,-544.0,0.00026703,7]
[426303192,1782259865000,-152.63920562,0.00026738,2]
[426303195,1782259865000,-345.7571594,0.00026738,2]
[426303197,1782259865000,-389.47193293,0.00026738,2]
[426303186,1782259865000,-1021.58590871,0.0002669,2]
[426303187,1782259865000,-151.0,0.0002669,2]
[426303196,1782259865000,-247.99298746,0.00026738,2]
[426303193,1782259865000,-210.89490108,0.00026738,2]
[426303184,1782259865000,-4888.88543764,0.0002669,2]
[426303185,1782259865000,-270.0455652,0.0002669,2]
[426303180,1782259865000,-270.0455652,0.0002669,2]
[426303181,1782259865000,-197.08549854,0.0002669,2]
[426303182,1782259865000,-242.15909246,0.0002669,2]
[426303177,1782259865000,-15239.35068509,0.00026667,2]
[426303175,1782259865000,-337.00797599,0.00026664,2]
[426303170,1782259865000,-324.87906912,0.00026664,2]
[426303179,1782259865000,-871.06772465,0.0002669,2]
[426303174,1782259865000,-357.093912,0.00026664,2]
[426303176,1782259865000,-209.24814807,0.00026664,2]
[426303178,1782259865000,-631.0,0.00026667,8]
[426303183,1782259865000,-2947.10875163,0.0002669,2]
[426303172,1782259865000,-418.1779831,0.00026664,2]
[426303200,1782259866000,-2231.02922488,0.00026822,2]
[426303202,1782259867000,-5.888,0.00024846,2]
[426303201,1782259867000,-500.0,0.00024846,2]
[426303203,1782259867000,-494.112,0.00024846,2]
[426303204,1782259867000,-500.0,0.00024846,2]
[426303206,1782259867000,-500.0,0.00024846,2]
[426303209,1782259867000,-17645.56198875,0.00026822,2]
[426303207,1782259867000,-500.0,0.00024846,2]
[426303205,1782259867000,-500.0,0.00024846,2]
[426303208,1782259867000,-500.0,0.00024846,2]
[426303210,1782259897000,-4351.37322763,7.252e-05,2]
[426303211,1782259917000,-4351.37322763,7.252e-05,2]
[426303212,1782259969000,263.54885701,0.00022193,30]
[426303213,1782260138000,591.5,0.00023,30]
[426303214,1782260185000,-150.0,6.823e-05,2]
[426303215,1782260238000,-150.0,6.619e-05,2]
[426303216,1782260271000,200.0,7.143e-05,7]
[426303217,1782260272000,200.0,7.143e-05,7]
[426303218,1782260292000,-250.0,6.929e-05,2]
[426303219,1782260345000,-150.0,6.5e-05,2]
[426303220,1782260398000,-150.0,6.5e-05,2]
[426303221,1782260451000,-150.0,6.72e-05,2]
[426303222,1782260505000,-150.0,6.719e-05,2]
[426303223,1782260558000,-150.0,6.618e-05,2]
[426303224,1782260612000,-409.54391439,6.823e-05,2]
[426303225,1782260665000,-150.0,6.618e-05,2]
[426303226,1782260866000,-188.47993,6.49e-05,2]
[426303227,1782260920000,-290.71389242,6.5e-05,2]
[426303234,1782260927000,-222.48172561,6.629e-05,2]
[426303230,1782260927000,-241.0,6.564e-05,2]
[426303231,1782260927000,-200.0,6.572e-05,2]
[426303232,1782260927000,-200.0,6.572e-05,2]
[426303233,1782260927000,-500.0,6.628e-05,2]
[426303229,1782260927000,-150.0,6.5e-05,2]
[426303228,1782260927000,-150.0,6.5e-05,2]
[426303235,1782260973000,-500.0,6.628e-05,2]
[426303236,1782260976000,-150.0,6.5e-05,2]
[426303238,1782261016000,-241.0,6.694e-05,2]
[426303237,1782261016000,-18.51827439,6.629e-05,2]
[426303266,1782261031000,-160.0,7.266e-05,2]
[426303267,1782261031000,-160.0,7.266e-05,2]
[426303265,1782261031000,-160.0,7.265e-05,2]
[426303264,1782261031000,-250.0,7.15e-05,2]
[426303263,1782261031000,-250.0,7.15e-05,2]
[426303262,1782261031000,-243.0,7.149e-05,2]
[426303256,1782261031000,-269.24666047,6.922e-05,2]
[426303260,1782261031000,-150.0,7.034e-05,2]
[426303261,1782261031000,-241.0,7.084e-05,2]
[426303259,1782261031000,-241.0,7.019e-05,2]
[426303258,1782261031000,-241.0,6.954e-05,2]
[426303257,1782261031000,-285.05513885,6.928e-05,2]
[426303255,1782261031000,-500.0,6.922e-05,2]
[426303254,1782261031000,-500.0,6.922e-05,2]
[426303249,1782261031000,-500.0,6.922e-05,2]
[426303252,1782261031000,-500.0,6.922e-05,2]
[426303246,1782261031000,-500.0,6.922e-05,2]
[426303243,1782261031000,-150.0,6.921e-05,2]
[426303251,1782261031000,-500.0,6.922e-05,2]
[426303250,1782261031000,-500.0,6.922e-05,2]
[426303247,1782261031000,-500.0,6.922e-05,2]
[426303245,1782261031000,-500.0,6.922e-05,2]
[426303273,1782261031000,-500.0,8.219e-05,2]
[426303244,1782261031000,-300.0,6.921e-05,2]
[426303242,1782261031000,-241.0,6.889e-05,2]
[426303241,1782261031000,-241.0,6.824e-05,2]
[426303240,1782261031000,-241.0,6.759e-05,2]
[426303239,1782261031000,-376.78040124,6.712e-05,2]
[426303253,1782261031000,-500.0,6.922e-05,2]
[426303270,1782261031000,-199.44,7.516e-05,2]
[426303248,1782261031000,-500.0,6.922e-05,2]
[426303268,1782261031000,-251.54886335,7.291e-05,2]
[426303272,1782261031000,-172.99479077,8e-05,2]
[426303306,1782261031000,-158.64,9.614e-05,2]
[426303305,1782261031000,-3127.88,9.596e-05,2]
[426303304,1782261031000,-4480.93,9.587e-05,2]
[426303301,1782261031000,-6169.09,9.476e-05,2]
[426303302,1782261031000,-262.23,9.495e-05,2]
[426303300,1782261031000,-310.75,9.391e-05,2]
[426303297,1782261031000,-192.0,9.145e-05,2]
[426303303,1782261031000,-1000.0,9.554e-05,2]
[426303298,1782261031000,-736.0,9.212e-05,2]
[426303296,1782261031000,-2892.5,9.137e-05,2]
[426303290,1782261031000,-500.0,9.08e-05,2]
[426303294,1782261031000,-3700.21,9.124e-05,2]
[426303292,1782261031000,-1804.87,9.094e-05,2]
[426303299,1782261031000,-170.0,9.316e-05,2]
[426303284,1782261031000,-4346.59,9.014e-05,2]
[426303283,1782261031000,-1185.48,9.01e-05,2]
[426303271,1782261031000,-255.0,7.613e-05,2]
[426303274,1782261031000,-199.44,8.268e-05,2]
[426303275,1782261031000,-433.0,8.374e-05,2]
[426303276,1782261031000,-500.0,8.493e-05,2]
[426303269,1782261031000,-250.0,7.292e-05,2]
[426303288,1782261031000,-1852.42,9.041e-05,2]
[426303278,1782261031000,-334.76723975,8.767e-05,2]
[426303279,1782261031000,-2889.71,8.96e-05,2]
[426303277,1782261031000,-250.0,8.689e-05,2]
[426303280,1782261031000,-152.59,8.984e-05,2]
[426303281,1782261031000,-737.15,8.988e-05,2]
[426303282,1782261031000,-299.41,8.991e-05,2]
[426303286,1782261031000,-199.44,9.02e-05,2]
[426303326,1782261032000,-596.84,0.00011154,2]
[426303325,1782261032000,-1461.0,0.0001115,2]
[426303328,1782261032000,-1185.48,0.00011262,2]
[426303324,1782261032000,-166.66,0.00011068,2]
[426303329,1782261032000,-199.44,0.00011275,2]
[426303340,1782261032000,-596.84,0.00012394,2]
[426303331,1782261032000,-166.66,0.00011397,2]
[426303332,1782261032000,-158.64,0.00011417,2]
[426303335,1782261032000,-501.11793365,0.00011711,2]
[426303339,1782261032000,-1185.48,0.00012388,2]
[426303336,1782261032000,-166.81,0.00012013,2]
[426303323,1782261032000,-166.66,0.00010959,2]
[426303330,1782261032000,-166.66,0.00011288,2]
[426303322,1782261032000,-150.0,0.00010959,2]
[426303307,1782261032000,-3001.58,9.659e-05,2]
[426303319,1782261032000,-216.39158367,0.00010629,2]
[426303321,1782261032000,-158.64,0.00010816,2]
[426303318,1782261032000,-199.44,0.00010523,2]
[426303316,1782261032000,-800.94460957,0.00010136,2]
[426303317,1782261032000,-158.64,0.00010215,2]
[426303315,1782261032000,-384.53539043,0.00010136,2]
[426303314,1782261032000,-1252.0,0.00010132,2]
[426303311,1782261032000,-596.84,9.915e-05,2]
[426303309,1782261032000,-3726.25,9.704e-05,2]
[426303313,1782261032000,-210.581386,0.0001,2]
[426303310,1782261032000,-199.44,9.771e-05,2]
[426303312,1782261032000,-940.59,9.915e-05,2]
[426303308,1782261032000,-1020.13,9.683e-05,2]
[426303333,1782261032000,-166.66,0.00011507,2]
[426303320,1782261032000,-2000.0,0.00010679,2]
[426303334,1782261032000,-353.96,0.00011554,2]
[426303327,1782261032000,-166.66,0.00011178,2]
[426303337,1782261032000,-158.64,0.00012018,2]
[426303338,1782261032000,-9999.99,0.00012087,2]
[426303371,1782261032000,-260.19579189,0.00013698,2]
[426303370,1782261032000,-500.0,0.00013698,2]
[426303369,1782261032000,-27.95670223,0.00013698,2]
[426303366,1782261032000,-393.8,0.00013698,2]
[426303367,1782261032000,-500.0,0.00013698,2]
[426303365,1782261032000,-629.84,0.00013698,2]
[426303362,1782261032000,-500.0,0.00013698,2]
[426303361,1782261032000,-512.43239997,0.00013698,2]
[426303364,1782261032000,-500.0,0.00013698,2]
[426303363,1782261032000,-500.0,0.00013698,2]
[426303359,1782261032000,-500.0,0.00013698,2]
[426303360,1782261032000,-500.0,0.00013698,2]
[426303357,1782261032000,-500.0,0.00013698,2]
[426303358,1782261032000,-500.0,0.00013698,2]
[426303368,1782261032000,-472.04329777,0.00013698,2]
[426303355,1782261032000,-500.0,0.00013698,2]
[426303356,1782261032000,-500.0,0.00013698,2]
[426303342,1782261032000,-300.0,0.000127,4]
[426303341,1782261032000,-158.64,0.00012619,2]
[426303344,1782261032000,-1000.0,0.000129,4]
[426303347,1782261032000,-3127.88,0.00013435,2]
[426303348,1782261032000,-10591.99714119,0.00013458,2]
[426303351,1782261032000,-1185.48,0.00013515,2]
[426303343,1782261032000,-700.0,0.000128,4]
[426303346,1782261032000,-2500.0,0.00013358,2]
[426303349,1782261032000,-170.21199947,0.00013458,2]